Workbook

Sheet 2024年6月
A1: 陆 丰 市 2024 年 6 月 财 政 预 算 收 入 完 成 情 况 表
A2: 2024-06-30 | L2: 单位：万元
B3: 年 度 | C3: 累 计 | D3: 占 年 | E3: 上 年 | F3: 比上年 | G3: 比上年 | H3: 本 月 | I3: 上 年 | J3: 比上年 | K3: 比上年
A4: 收 入 项 目 | B4: 预 算 | C4: 完 成 | D4: 预 算 | E4: 同 期 | F4: 同期增 | G4: 同期增 | H4: 完 成 | I4: 同 月 | J4: 同月增 | K4: 同月增 | L4: 备 注
B5: 数 | C5: 数 | D5: % | E5: 完 成 | F5: 减额 | G5: (减)% | H5: 数 | I5: 完 成 | J5: 减额 | K5: (减)%
A6: （一）税收收入 | B6: =SUM(B7:B20) -> 70,000 | C6: =SUM(C7:C20) -> 23,640 | D6: =C6/B6*100 -> 33.8 | E6: =SUM(E7:E20) -> 30,726 | F6: =C6-E6 -> -7,086 | G6: =F6/E6*100 -> -23.1 | H6: =H7+H8+H9+H10+H11+H12+H13+H14+H15+H16+H17+H18+H19+H20 -> 3,034 | I6: =SUM(I7:I20) -> 7,836 | J6: =H6-I6 -> -4,802 | K6: =J6/I6*100 -> -61.3
A7: 1、增值税 | B7: 18,300 | C7: 7,391 | D7: 40.4 | E7: 7,604 | F7: -213 | G7: -2.8 | H7: 1,214 | I7: 1,439 | J7: -225 | K7: -15.6
A8: 2、企业所得税 | B8: 5,500 | C8: 3,276 | D8: 59.6 | E8: 1,971 | F8: 1,305 | G8: 66.2 | H8: 68 | I8: 114 | J8: -46 | K8: -40.4
A9: 3、个人所得税 | B9: 1,400 | C9: 521 | D9: 37.2 | E9: 614 | F9: -93 | G9: -15.1 | H9: 87 | I9: 113 | J9: -26 | K9: -23.0
A10: 4、资源税 | B10: 1,500 | C10: 52 | D10: 3.5 | E10: 11 | F10: 41 | G10: 372.7 | H10: 1 | I10: 0 | J10: 1
A11: 5、城市维护建设税 | B11: 5,900 | C11: 2,440 | D11: 41.4 | E11: 2,520 | F11: -80 | G11: -3.2 | H11: 380 | I11: 357 | J11: 23 | K11: =J11/I11*100 -> 6.4
A12: 6、房产税 | B12: 4,150 | C12: 594 | D12: 14.3 | E12: 451 | F12: 143 | G12: 31.7 | H12: 54 | I12: 179 | J12: -125 | K12: -69.8
A13: 7、印花税 | B13: 1,850 | C13: 699 | D13: 37.8 | E13: 895 | F13: -196 | G13: -21.9 | H13: 70 | I13: 67 | J13: 3 | K13: 4.5
A14: 8、城镇土地使用税 | B14: 2,550 | C14: 258 | D14: 10.1 | E14: 510 | F14: -252 | G14: -49.4 | H14: 20 | I14: 37 | J14: -17 | K14: -45.9
A15: 9、土地增值税 | B15: 5,000 | C15: 2,580 | D15: 51.6 | E15: 1,681 | F15: 899 | G15: 53.5 | H15: 589 | I15: 310 | J15: 279 | K15: 90.0
A16: 10、车船使用税 | B16: 2,000 | C16: 966 | D16: 48.3 | E16: 902 | F16: 64 | G16: 7.1 | H16: 130 | I16: 125 | J16: 5 | K16: 4.0
A17: 11、环保税 | B17: 350 | C17: 181 | D17: 51.7 | E17: 113 | F17: 68 | G17: 60.2 | H17: 19 | I17: 22 | J17: -3 | K17: -13.6
A18: 12、耕地占用税 | B18: 12,000 | C18: 2,267 | D18: 18.9 | E18: 9,879 | F18: -7,612 | G18: -77.1 | H18: 0 | I18: 4,459 | J18: -4,459 | K18: =J18/I18*100 -> -100.0
A19: 13、契 税 | B19: 9,500 | C19: 2,415 | D19: 25.4 | E19: 3,575 | F19: -1,160 | G19: -32.4 | H19: 402 | I19: 614 | J19: -212 | K19: =J19/I19*100 -> -34.5
A20: 14、其他税收收入 | B20: 0 | E20: 0 | F20: 0 | H20: 0 | I20: 0 | J20: 0
A21: （二）非税收入 | B21: =SUM(B22:B29) -> 75,800 | C21: =SUM(C22:C29) -> 58,604 | D21: =C21/B21*100 -> 77.3 | E21: =E22+E23+E24+E25+E26+E27+E28+E29 -> 42,534 | F21: 16,070 | G21: =F21/E21*100 -> 37.8 | H21: 25,944 | I21: 13,424 | J21: 12,520 | K21: 93.3
A22: 1、专项收入 | B22: 4,400 | C22: 10,527 | D22: 239.3 | E22: 1,812 | F22: 8,715 | G22: 481.0 | H22: 6,499 | I22: 249 | J22: 6,250 | K22: 2,510.0
A23: 2、行政事业性收费收入 | B23: 8,900 | C23: 19,179 | D23: 215.5 | E23: 12,694 | F23: 6,485 | G23: 51.1 | H23: 4,744 | I23: 6,451 | J23: -1,707 | K23: -26.5
A24: 3、罚没收入 | B24: 5,500 | C24: 11,137 | D24: 202.5 | E24: 5,832 | F24: 5,305 | G24: 91.0 | H24: 2,009 | I24: 997 | J24: 1,012 | K24: =J24/I24*100 -> 101.5
A25: 4、国有资源（资产）有偿使用收入 | B25: 49,800 | C25: 2,985 | D25: 6.0 | E25: 13,793 | F25: -10,808 | G25: -78.4 | H25: 129 | I25: 204 | J25: -75 | K25: -36.8
A26: 5、政府住房基金收入 | B26: 300 | C26: 302 | D26: 100.7 | E26: 204 | F26: 98 | G26: 48.0 | H26: 38 | I26: 93 | J26: -55 | K26: -59.1
A27: 6、捐赠收入 | B27: 1,000 | C27: 10,597 | D27: 1059.7 | E27: 6,265 | F27: 4,332 | G27: 69.1 | H27: 10,200 | I27: 4,955 | J27: 5,245 | K27: 105.9
A28: 7、其他收入 | B28: 5,900 | C28: 3,877 | D28: 65.7 | E28: 1,929 | F28: 1,948 | G28: 101.0 | H28: 2,325 | I28: 475 | J28: 1,850 | K28: 389.5
A29: 8、国有资本经营收入 | E29: 5 | F29: -5 | G29: -100.0 | H29: 0 | I29: 0 | J29: 0
A30: 一、一般公共预算收入 | B30: =B6+B21 -> 145,800 | C30: =C6+C21 -> 82,244 | D30: =C30/B30*100 -> 56.4 | E30: 73,260 | F30: 8,984 | G30: 12.3 | H30: 28,978 | I30: 21,260 | J30: 7,718 | K30: =J30/I30*100 -> 36.3
A31: 二、政府性基金预算收入小计 | B31: 158,877 | C31: 36,553 | D31: 23.0 | E31: 24,121 | F31: 12,432 | G31: 51.5 | H31: 8,122 | I31: 2,222 | J31: 5,900 | K31: 265.5
A32: 其中：国有土地使用权出让收入 | B32: 152,307 | C32: 32,835 | D32: 21.6 | E32: 21,458 | F32: 11,377 | G32: 53.0 | H32: 7,831 | I32: 1,794 | J32: 6,037 | K32: 336.5
A33: 三、国有资本经营收入小计 | B33: 60,600 | C33: 200 | D33: 0.3 | E33: 300 | F33: -100 | G33: -33.3 | H33: 0 | I33: 0 | J33: 0
A34: 收入合计 | B34: =B30+B31+B33 -> 365,277 | C34: =C30+C31+C33 -> 118,997 | D34: 32.6 | E34: 97,681 | F34: 21,316 | G34: 21.8 | H34: 37,100 | I34: 23,482 | J34: 13,618 | K34: 58.0
L35: 陆丰市财政局国库股
